{"text_format":"3","workbook":"xlsx","n_sheets":4,"sheets":["Anfang","Hochzeitsbudget","Bekleidung-Empfang-Musik-Bilder","Deko-Blumen-Geschenke-Reise"],"not_rendered":{"charts":1,"defined_names":22},"read":"whole","date_system":"1900"}

{"sheet":"Anfang","index":0,"n_rows":7,"n_cols":2,"rows_kept":7}
[null,"ÜBER DIESE VORLAGE"]
[null,"Verwenden Sie diese Vorlage, um die Ausgaben für Ihre Hochzeit nachzuverfolgen."]
[null,"Geben Sie die geschätzt und tatsächlich angefallenen Kosten für verschiedene Kategorien auf separaten Arbeitsblättern ein."]
[null,"Die Hochzeitsbudgetübersicht und das Diagramm werden automatisch aktualisiert."]
[null,"Anmerkung: "]
[null,"Weitere Anweisungen wurden in Spalte A auf jedem Arbeitsblatt bereitgestellt. Diese Texte wurden absichtlich ausgeblendet. Um die Texte zu entfernen, wählen Sie Spalte A und dann ENTF aus. Um die Texte einzublenden, wählen Sie Spalte A aus, und ändern Sie die Schriftfarbe."]
[null,"Um mehr über Tabellen zu erfahren, drücken Sie die UMSCHALTTASTE und dann F10 innerhalb einer Tabelle, und wählen Sie die Option TABELLE und dann ALTERNATIVTEXT aus."]

{"sheet":"Hochzeitsbudget","index":1,"n_rows":19,"n_cols":6,"rows_kept":19,"merged":[[2,2,4,5],[18,2,42,5]]}
["Erstellen Sie auf diesem Arbeitsblatt ein Hochzeitsbudget. Geben Sie Details in den Tabellen auf den Arbeitsblättern \"Bekleidung-Empfang-Musik-Bilder\" und \"Deko-Blumen-Geschenk-Reise\" ein, um die Übersicht und das Diagramm auf dem aktuellen Arbeitsblatt zu aktualisieren. Nützliche Anweisungen zum Verwenden dieses Arbeitsblatts befinden sich in Zellen in dieser Spalte. Die Bezeichnung \"Hochzeitsdatum\" befindet sich in Zelle C1.",null,"Hochzeitsdatum:"]
["Geben Sie das Hochzeitsdatum in Zelle C2 ein. Die verbleibenden Tage werden in Zelle E2 automatisch berechnet.",null,{"$f":"TODAY()+365","v":"2019-12-03"},"Verbleibende Tage:",{"$f":"C2-TODAY()","v":365}]
["Der Titel dieses Arbeitsblatts befindet sich in Zelle C3. Die nächste Anweisung finden Sie in Zelle A6.",null,"Hochzeitsbudgetübersicht"]
[]
[]
["Die Tabelle mit der Budgetübersicht, die in Zelle C6 beginnt, wird automatisch aktualisiert. Die nächste Anweisung finden Sie in Zelle A19.",null,"KATEGORIE","GESCHÄTZT","TATSÄCHLICH","ÜBER/UNTER"]
[null,null,"Bekleidung",{"$f":"Apparel_Total_est","v":{"v":9490,"d":"9,490.00"}},{"$f":"Apparel_Total_act","v":{"v":9770,"d":"9,770.00"}},{"$f":"Budgetübersicht[[#This Row],[GESCHÄTZT]]-Budgetübersicht[[#This Row],[TATSÄCHLICH]]","v":{"v":-280,"d":"-280.00"}}]
[null,null,"Empfang",{"$f":"Reception_Total_est","v":{"v":1050,"d":"1,050.00"}},{"$f":"Reception_Total_act","v":{"v":928,"d":"928.00"}},{"$f":"Budgetübersicht[[#This Row],[GESCHÄTZT]]-Budgetübersicht[[#This Row],[TATSÄCHLICH]]","v":{"v":122,"d":"122.00"}}]
[null,null,"Musik",{"$f":"Music_Entertainment_Total_est","v":{"v":600,"d":"600.00"}},{"$f":"Music_Entertainment_Total_act","v":{"v":400,"d":"400.00"}},{"$f":"Budgetübersicht[[#This Row],[GESCHÄTZT]]-Budgetübersicht[[#This Row],[TATSÄCHLICH]]","v":{"v":200,"d":"200.00"}}]
[null,null,"Druckmaterial",{"$f":"Printing__Stationery_Total_est","v":{"v":935,"d":"935.00"}},{"$f":"Printing__Stationery_Total_act","v":{"v":870,"d":"870.00"}},{"$f":"Budgetübersicht[[#This Row],[GESCHÄTZT]]-Budgetübersicht[[#This Row],[TATSÄCHLICH]]","v":{"v":65,"d":"65.00"}}]
[null,null,"Fotografie",{"$f":"Photography_Total_est","v":{"v":1625,"d":"1,625.00"}},{"$f":"Photography_Total_act","v":{"v":1575,"d":"1,575.00"}},{"$f":"Budgetübersicht[[#This Row],[GESCHÄTZT]]-Budgetübersicht[[#This Row],[TATSÄCHLICH]]","v":{"v":50,"d":"50.00"}}]
[null,null,"Dekoration",{"$f":"Decorations_Total_est","v":{"v":700,"d":"700.00"}},{"$f":"Decorations_Total_act","v":{"v":720,"d":"720.00"}},{"$f":"Budgetübersicht[[#This Row],[GESCHÄTZT]]-Budgetübersicht[[#This Row],[TATSÄCHLICH]]","v":{"v":-20,"d":"-20.00"}}]
[null,null,"Blumen",{"$f":"Flowers_Total_est","v":{"v":900,"d":"900.00"}},{"$f":"Flowers_Total_act","v":{"v":850,"d":"850.00"}},{"$f":"Budgetübersicht[[#This Row],[GESCHÄTZT]]-Budgetübersicht[[#This Row],[TATSÄCHLICH]]","v":{"v":50,"d":"50.00"}}]
[null,null,"Geschenke",{"$f":"Gifts_Total_est","v":{"v":1345,"d":"1,345.00"}},{"$f":"Gifts_Total_act","v":{"v":1075,"d":"1,075.00"}},{"$f":"Budgetübersicht[[#This Row],[GESCHÄTZT]]-Budgetübersicht[[#This Row],[TATSÄCHLICH]]","v":{"v":270,"d":"270.00"}}]
[null,null,"Reise",{"$f":"Travel_Transportation_Total_est","v":{"v":100,"d":"100.00"}},{"$f":"Travel_Transportation_Total_act","v":{"v":165,"d":"165.00"}},{"$f":"Budgetübersicht[[#This Row],[GESCHÄTZT]]-Budgetübersicht[[#This Row],[TATSÄCHLICH]]","v":{"v":-65,"d":"-65.00"}}]
[null,null,"Sonstiges",{"$f":"Other_Expenses_Total_est","v":{"v":885,"d":"885.00"}},{"$f":"Other_Expenses_Total_act","v":{"v":1021,"d":"1,021.00"}},{"$f":"Budgetübersicht[[#This Row],[GESCHÄTZT]]-Budgetübersicht[[#This Row],[TATSÄCHLICH]]","v":{"v":-136,"d":"-136.00"}}]
[null,null,"Ausgaben gesamt",{"$f":"SUBTOTAL(109,Budgetübersicht[GESCHÄTZT])","v":{"v":17630,"d":"17,630.00"}},{"$f":"SUBTOTAL(109,Budgetübersicht[TATSÄCHLICH])","v":{"v":17374,"d":"17,374.00"}},{"$f":"SUBTOTAL(109,Budgetübersicht[ÜBER/UNTER])","v":{"v":256,"d":"256.00"}}]
[]
["Das Kreisdiagramm in Zelle C19 wird automatisch aktualisiert.",null,"Das Kreisdiagramm mit dem Ausgabenprozentsatz für jede Kategorie befindet sich in dieser Zelle."]

{"sheet":"Bekleidung-Empfang-Musik-Bilder","index":2,"n_rows":56,"n_cols":6,"rows_kept":56,"merged":[[16,1,16,4],[28,1,28,4],[29,1,29,4],[35,1,35,4],[48,1,48,4]]}
["Geben Sie die geschätzt und tatsächlich Kosten für jede Kategorie in den jeweiligen Tabellen auf diesem Arbeitsblatt ein. Der über oder unter dem Budget liegende Betrag wird automatisch berechnet. Die Bezeichnung \"Bekleidung\" befindet sich in der Zelle rechts. Nützliche Anweisungen zum Verwenden dieses Arbeitsblatts befinden sich in Zellen in dieser Spalte. Drücken Sie die NACH-UNTEN-TASTE, um anzufangen.","Bekleidung",{"$nulls":3}," "]
["Geben Sie Details in der Tabelle \"Bekleidung\" ein, die in der Zelle rechts beginnt. Die nächste Anweisung finden Sie in Zelle A18.","KATEGORIE","GESCHÄTZT","TATSÄCHLICH","ÜBER/UNTER"," "]
[null,"Verlobungsring(e)",{"v":1500,"d":"1,500.00"},{"v":1500,"d":"1,500.00"},{"$f":"'Bekleidung-Empfang-Musik-Bilder'!$C3-'Bekleidung-Empfang-Musik-Bilder'!$D3","v":{"v":0,"d":"0.00"}}]
[null,"Verlobter 1 – Ring",{"v":2000,"d":"2,000.00"},{"v":2300,"d":"2,300.00"},{"$f":"'Bekleidung-Empfang-Musik-Bilder'!$C4-'Bekleidung-Empfang-Musik-Bilder'!$D4","v":{"v":-300,"d":"-300.00 "}}]
[null,"Verlobter 1 – Kleid/Smoking",{"v":3000,"d":"3,000.00"},{"v":2750,"d":"2,750.00"},{"$f":"'Bekleidung-Empfang-Musik-Bilder'!$C5-'Bekleidung-Empfang-Musik-Bilder'!$D5","v":{"v":250,"d":"250.00"}}]
[null,"Verlobter 1 – Schleier/Kopfschmuck",{"v":500,"d":"500.00"},{"v":500,"d":"500.00"},{"$f":"'Bekleidung-Empfang-Musik-Bilder'!$C6-'Bekleidung-Empfang-Musik-Bilder'!$D6","v":{"v":0,"d":"0.00"}}]
[null,"Verlobter 1 – Schuhe",{"v":350,"d":"350.00"},{"v":300,"d":"300.00"},{"$f":"'Bekleidung-Empfang-Musik-Bilder'!$C7-'Bekleidung-Empfang-Musik-Bilder'!$D7","v":{"v":50,"d":"50.00"}}]
[null,"Verlobter 1 – Schmuck",{"v":400,"d":"400.00"},{"v":550,"d":"550.00"},{"$f":"'Bekleidung-Empfang-Musik-Bilder'!$C8-'Bekleidung-Empfang-Musik-Bilder'!$D8","v":{"v":-150,"d":"-150.00 "}}]
[null,"Verlobter 1 – Strumpfwaren",{"v":20,"d":"20.00"},{"v":20,"d":"20.00"},{"$f":"'Bekleidung-Empfang-Musik-Bilder'!$C9-'Bekleidung-Empfang-Musik-Bilder'!$D9","v":{"v":0,"d":"0.00"}}]
[null,"Verlobter 2 – Ring",{"v":300,"d":"300.00"},{"v":250,"d":"250.00"},{"$f":"'Bekleidung-Empfang-Musik-Bilder'!$C10-'Bekleidung-Empfang-Musik-Bilder'!$D10","v":{"v":50,"d":"50.00"}}]
[null,"Verlobter 2 – Kleid/Smoking",{"v":300,"d":"300.00"},{"v":350,"d":"350.00"},{"$f":"'Bekleidung-Empfang-Musik-Bilder'!$C11-'Bekleidung-Empfang-Musik-Bilder'!$D11","v":{"v":-50,"d":"-50.00 "}}]
[null,"Verlobter 2 – Schleier/Kopfschmuck",{"v":500,"d":"500.00"},{"v":500,"d":"500.00"},{"$f":"'Bekleidung-Empfang-Musik-Bilder'!$C12-'Bekleidung-Empfang-Musik-Bilder'!$D12","v":{"v":0,"d":"0.00"}}]
[null,"Verlobter 2 – Schuhe",{"v":200,"d":"200.00"},{"v":175,"d":"175.00"},{"$f":"'Bekleidung-Empfang-Musik-Bilder'!$C13-'Bekleidung-Empfang-Musik-Bilder'!$D13","v":{"v":25,"d":"25.00"}}]
[null,"Verlobter 2 – Schmuck",{"v":400,"d":"400.00"},{"v":550,"d":"550.00"},{"$f":"'Bekleidung-Empfang-Musik-Bilder'!$C14-'Bekleidung-Empfang-Musik-Bilder'!$D14","v":{"v":-150,"d":"-150.00 "}}]
[null,"Verlobter 2 – Strumpfwaren",{"v":20,"d":"20.00"},{"v":25,"d":"25.00"},{"$f":"'Bekleidung-Empfang-Musik-Bilder'!$C15-'Bekleidung-Empfang-Musik-Bilder'!$D15","v":{"v":-5,"d":"-5.00 "}}]
[null,"Bekleidung gesamt",{"$f":"SUBTOTAL(109,Bekleidung[GESCHÄTZT])","v":{"v":9490,"d":"9,490.00"}},{"$f":"SUBTOTAL(109,Bekleidung[TATSÄCHLICH])","v":{"v":9770,"d":"9,770.00"}},{"$f":"SUBTOTAL(109,Bekleidung[ÜBER/UNTER])","v":{"v":-280,"d":"-280.00 "}}]
[]
["Die Bezeichnung \"Empfang\" befindet sich in der Zelle rechts.","Empfang*"]
["Geben Sie die Kosten für den Empfang, mit Ausnahme von Unterhaltung und Dekoration, in der Tabelle ein, die in der Zelle rechts beginnt. Die nächste Anweisung finden Sie in Zelle A31.","KATEGORIE","GESCHÄTZT","TATSÄCHLICH","ÜBER/UNTER"]
[null,"Raum-/Saalkosten",{"v":200,"d":"200.00"},{"v":150,"d":"150.00"},{"$f":"'Bekleidung-Empfang-Musik-Bilder'!$C20-'Bekleidung-Empfang-Musik-Bilder'!$D20","v":{"v":50,"d":"50.00"}}]
[null,"Tische und Stühle",{"v":100,"d":"100.00"},{"v":50,"d":"50.00"},{"$f":"'Bekleidung-Empfang-Musik-Bilder'!$C21-'Bekleidung-Empfang-Musik-Bilder'!$D21","v":{"v":50,"d":"50.00"}}]
[null,"Essen",{"v":0,"d":"0.00"},{"v":0,"d":"0.00"},{"$f":"'Bekleidung-Empfang-Musik-Bilder'!$C22-'Bekleidung-Empfang-Musik-Bilder'!$D22","v":{"v":0,"d":"0.00"}}]
[null,"Getränke",{"v":0,"d":"0.00"},{"v":0,"d":"0.00"},{"$f":"'Bekleidung-Empfang-Musik-Bilder'!$C23-'Bekleidung-Empfang-Musik-Bilder'!$D23","v":{"v":0,"d":"0.00"}}]
[null,"Tischwäsche",{"v":0,"d":"0.00"},{"v":0,"d":"0.00"},{"$f":"'Bekleidung-Empfang-Musik-Bilder'!$C24-'Bekleidung-Empfang-Musik-Bilder'!$D24","v":{"v":0,"d":"0.00"}}]
[null,"Torte",{"v":700,"d":"700.00"},{"v":700,"d":"700.00"},{"$f":"'Bekleidung-Empfang-Musik-Bilder'!$C25-'Bekleidung-Empfang-Musik-Bilder'!$D25","v":{"v":0,"d":"0.00"}}]
[null,"Gastgeschenke",{"v":50,"d":"50.00"},{"v":28,"d":"28.00"},{"$f":"'Bekleidung-Empfang-Musik-Bilder'!$C26-'Bekleidung-Empfang-Musik-Bilder'!$D26","v":{"v":22,"d":"22.00"}}]
[null,"Personal und Gratifikationen",{"v":0,"d":"0.00"},{"v":0,"d":"0.00"},{"$f":"'Bekleidung-Empfang-Musik-Bilder'!$C27-'Bekleidung-Empfang-Musik-Bilder'!$D27","v":{"v":0,"d":"0.00"}}]
[null,"Empfang gesamt",{"$f":"SUBTOTAL(109,Empfang[GESCHÄTZT])","v":{"v":1050,"d":"1,050.00"}},{"$f":"SUBTOTAL(109,Empfang[TATSÄCHLICH])","v":{"v":928,"d":"928.00"}},{"$f":"SUBTOTAL(109,Empfang[ÜBER/UNTER])","v":{"v":122,"d":"122.00"}}]
[null,"* Unterhaltung und Dekoration nicht eingeschlossen"]
[]
["Die Bezeichnung \"Musik\" oder \"Unterhaltung\" befindet sich in der Zelle rechts.","Musik/Unterhaltung"]
["Geben Sie Details in der Tabelle \"Musik\" ein, die in der Zelle rechts beginnt. Die nächste Anweisung finden Sie in Zelle A37.","KATEGORIE","GESCHÄTZT","TATSÄCHLICH","ÜBER/UNTER"]
[null,"Musiker für Zeremonie",{"v":400,"d":"400.00"},{"v":400,"d":"400.00"},{"$f":"'Bekleidung-Empfang-Musik-Bilder'!$C33-'Bekleidung-Empfang-Musik-Bilder'!$D33","v":{"v":0,"d":"0.00"}}]
[null,"Band/DJ für Empfang",{"v":200,"d":"200.00"},{"v":0,"d":"0.00"},{"$f":"'Bekleidung-Empfang-Musik-Bilder'!$C34-'Bekleidung-Empfang-Musik-Bilder'!$D34","v":{"v":200,"d":"200.00"}}]
[null,"Musik/Unterhaltung gesamt",{"$f":"SUBTOTAL(109,Musik[GESCHÄTZT])","v":{"v":600,"d":"600.00"}},{"$f":"SUBTOTAL(109,Musik[TATSÄCHLICH])","v":{"v":400,"d":"400.00"}},{"$f":"SUBTOTAL(109,Musik[ÜBER/UNTER])","v":{"v":200,"d":"200.00"}}]
[]
["Die Bezeichnung \"Druckmaterial\" oder \"Briefpapier\" befindet sich in der Zelle rechts.","Druckmaterial/Briefpapier"]
["Geben Sie Details in der Tabelle \"Druckmaterial\" ein, die in der Zelle rechts beginnt. Die nächste Anweisung finden Sie in Zelle A50.","KATEGORIE","GESCHÄTZT","TATSÄCHLICH","ÜBER/UNTER"]
[null,"Einladungen",{"v":500,"d":"500.00"},{"v":450,"d":"450.00"},{"$f":"'Bekleidung-Empfang-Musik-Bilder'!$C39-'Bekleidung-Empfang-Musik-Bilder'!$D39","v":{"v":50,"d":"50.00"}}]
[null,"Ankündigungen",{"v":200,"d":"200.00"},{"v":175,"d":"175.00"},{"$f":"'Bekleidung-Empfang-Musik-Bilder'!$C40-'Bekleidung-Empfang-Musik-Bilder'!$D40","v":{"v":25,"d":"25.00"}}]
[null,"Dankschreiben",{"v":100,"d":"100.00"},{"v":100,"d":"100.00"},{"$f":"'Bekleidung-Empfang-Musik-Bilder'!$C41-'Bekleidung-Empfang-Musik-Bilder'!$D41","v":{"v":0,"d":"0.00"}}]
[null,"Persönliches Briefpapier",{"v":0,"d":"0.00"},{"v":0,"d":"0.00"},{"$f":"'Bekleidung-Empfang-Musik-Bilder'!$C42-'Bekleidung-Empfang-Musik-Bilder'!$D42","v":{"v":0,"d":"0.00"}}]
[null,"Gästebuch",{"v":25,"d":"25.00"},{"v":25,"d":"25.00"},{"$f":"'Bekleidung-Empfang-Musik-Bilder'!$C43-'Bekleidung-Empfang-Musik-Bilder'!$D43","v":{"v":0,"d":"0.00"}}]
[null,"Programme",{"v":75,"d":"75.00"},{"v":80,"d":"80.00"},{"$f":"'Bekleidung-Empfang-Musik-Bilder'!$C44-'Bekleidung-Empfang-Musik-Bilder'!$D44","v":{"v":-5,"d":"-5.00 "}}]
[null,"Servietten für Empfang",{"v":35,"d":"35.00"},{"v":40,"d":"40.00"},{"$f":"'Bekleidung-Empfang-Musik-Bilder'!$C45-'Bekleidung-Empfang-Musik-Bilder'!$D45","v":{"v":-5,"d":"-5.00 "}}]
[null,"Streichholzbriefchen",{"v":0,"d":"0.00"},{"v":0,"d":"0.00"},{"$f":"'Bekleidung-Empfang-Musik-Bilder'!$C46-'Bekleidung-Empfang-Musik-Bilder'!$D46","v":{"v":0,"d":"0.00"}}]
[null,"Kalligrafie",{"v":0,"d":"0.00"},{"v":0,"d":"0.00"},{"$f":"'Bekleidung-Empfang-Musik-Bilder'!$C47-'Bekleidung-Empfang-Musik-Bilder'!$D47","v":{"v":0,"d":"0.00"}}]
[null,"Druckmaterial/Briefpapier gesamt",{"$f":"SUBTOTAL(109,Druckmaterial[GESCHÄTZT])","v":{"v":935,"d":"935.00"}},{"$f":"SUBTOTAL(109,Druckmaterial[TATSÄCHLICH])","v":{"v":870,"d":"870.00"}},{"$f":"SUBTOTAL(109,Druckmaterial[ÜBER/UNTER])","v":{"v":65,"d":"65.00"}}]
[]
["Die Bezeichnung \"Fotografie\" befindet sich in der Zelle rechts.","Fotografie"]
["Geben Sie Details in der Tabelle \"Fotografie\" ein, die in der Zelle rechts beginnt.","KATEGORIE","GESCHÄTZT","TATSÄCHLICH","ÜBER/UNTER"]
[null,"Formelle Fotos",{"v":1300,"d":"1,300.00"},{"v":1300,"d":"1,300.00"},{"$f":"'Bekleidung-Empfang-Musik-Bilder'!$C52-'Bekleidung-Empfang-Musik-Bilder'!$D52","v":{"v":0,"d":"0.00"}}]
[null,"Zusätzliche Abzüge",{"v":25,"d":"25.00"},{"v":25,"d":"25.00"},{"$f":"'Bekleidung-Empfang-Musik-Bilder'!$C53-'Bekleidung-Empfang-Musik-Bilder'!$D53","v":{"v":0,"d":"0.00"}}]
[null,"Fotoalben",{"v":100,"d":"100.00"},{"v":100,"d":"100.00"},{"$f":"'Bekleidung-Empfang-Musik-Bilder'!$C54-'Bekleidung-Empfang-Musik-Bilder'!$D54","v":{"v":0,"d":"0.00"}}]
[null,"Videografie",{"v":200,"d":"200.00"},{"v":150,"d":"150.00"},{"$f":"'Bekleidung-Empfang-Musik-Bilder'!$C55-'Bekleidung-Empfang-Musik-Bilder'!$D55","v":{"v":50,"d":"50.00"}}]
[null,"Fotografie gesamt",{"$f":"SUBTOTAL(109,Fotografie[GESCHÄTZT])","v":{"v":1625,"d":"1,625.00"}},{"$f":"SUBTOTAL(109,Fotografie[TATSÄCHLICH])","v":{"v":1575,"d":"1,575.00"}},{"$f":"SUBTOTAL(109,Fotografie[ÜBER/UNTER])","v":{"v":50,"d":"50.00"}}]

{"sheet":"Deko-Blumen-Geschenke-Reise","index":3,"n_rows":48,"n_cols":5,"rows_kept":48,"merged":[[8,1,8,4],[9,1,9,4],[18,1,18,4],[27,1,27,4],[34,1,34,4]]}
["Geben Sie die geschätzt und tatsächlich Kosten für jede Kategorie in den jeweiligen Tabellen auf diesem Arbeitsblatt ein. Der über oder unter dem Budget liegende Betrag wird automatisch berechnet. Die Bezeichnung \"Dekoration\" befindet sich in der Zelle rechts. Nützliche Anweisungen zum Verwenden dieses Arbeitsblatts befinden sich in Zellen in dieser Spalte. Drücken Sie die NACH-UNTEN-TASTE, um anzufangen.","Dekoration*"]
["Geben Sie die Kosten für Dekoration, mit Ausnahme der Kosten für Blumen, in der Tabelle ein, die in der Zelle rechts beginnt. Die nächste Anweisung finden Sie in Zelle A11.","KATEGORIE","GESCHÄTZT","TATSÄCHLICH","ÜBER/UNTER"]
[null,"Schleifen für Sitze",{"v":0,"d":"0.00"},{"v":0,"d":"0.00"},{"$f":"'Deko-Blumen-Geschenke-Reise'!$C3-'Deko-Blumen-Geschenke-Reise'!$D3","v":{"v":0,"d":"0.00"}}]
[null,"Tafelaufsätze",{"v":300,"d":"300.00"},{"v":320,"d":"320.00"},{"$f":"'Deko-Blumen-Geschenke-Reise'!$C4-'Deko-Blumen-Geschenke-Reise'!$D4","v":{"v":-20,"d":"-20.00 "}}]
[null,"Kerzen",{"v":100,"d":"100.00"},{"v":75,"d":"75.00"},{"$f":"'Deko-Blumen-Geschenke-Reise'!$C5-'Deko-Blumen-Geschenke-Reise'!$D5","v":{"v":25,"d":"25.00"}}]
[null,"Beleuchtung",{"v":100,"d":"100.00"},{"v":75,"d":"75.00"},{"$f":"'Deko-Blumen-Geschenke-Reise'!$C6-'Deko-Blumen-Geschenke-Reise'!$D6","v":{"v":25,"d":"25.00"}}]
[null,"Ballons",{"v":200,"d":"200.00"},{"v":250,"d":"250.00"},{"$f":"'Deko-Blumen-Geschenke-Reise'!$C7-'Deko-Blumen-Geschenke-Reise'!$D7","v":{"v":-50,"d":"-50.00 "}}]
[null,"Dekoration gesamt",{"$f":"SUBTOTAL(109,Dekoration[GESCHÄTZT])","v":{"v":700,"d":"700.00"}},{"$f":"SUBTOTAL(109,Dekoration[TATSÄCHLICH])","v":{"v":720,"d":"720.00"}},{"$f":"SUBTOTAL(109,Dekoration[ÜBER/UNTER])","v":{"v":-20,"d":"-20.00 "}}]
[null,"* Blumen nicht eingeschlossen"]
[]
["Die Bezeichnung \"Blumen\" befindet sich in der Zelle rechts.","Blumen"]
["Geben Sie Details in der Tabelle \"Blumen\" ein, die in der Zelle rechts beginnt. Die nächste Anweisung finden Sie in Zelle A20.","KATEGORIE","GESCHÄTZT","TATSÄCHLICH","ÜBER/UNTER"]
[null,"Sträuße",{"v":500,"d":"500.00"},{"v":450,"d":"450.00"},{"$f":"'Deko-Blumen-Geschenke-Reise'!$C13-'Deko-Blumen-Geschenke-Reise'!$D13","v":{"v":50,"d":"50.00"}}]
[null,"Boutonnières",{"v":0,"d":"0.00"},{"v":0,"d":"0.00"},{"$f":"'Deko-Blumen-Geschenke-Reise'!$C14-'Deko-Blumen-Geschenke-Reise'!$D14","v":{"v":0,"d":"0.00"}}]
[null,"Anstecksträuße",{"v":0,"d":"0.00"},{"v":0,"d":"0.00"},{"$f":"'Deko-Blumen-Geschenke-Reise'!$C15-'Deko-Blumen-Geschenke-Reise'!$D15","v":{"v":0,"d":"0.00"}}]
[null,"Zeremonie",{"v":400,"d":"400.00"},{"v":400,"d":"400.00"},{"$f":"'Deko-Blumen-Geschenke-Reise'!$C16-'Deko-Blumen-Geschenke-Reise'!$D16","v":{"v":0,"d":"0.00"}}]
[null,"Empfang",{"v":0,"d":"0.00"},{"v":0,"d":"0.00"},{"$f":"'Deko-Blumen-Geschenke-Reise'!$C17-'Deko-Blumen-Geschenke-Reise'!$D17","v":{"v":0,"d":"0.00"}}]
[null,"Blumen gesamt",{"$f":"SUBTOTAL(109,Blumen[GESCHÄTZT])","v":{"v":900,"d":"900.00"}},{"$f":"SUBTOTAL(109,Blumen[TATSÄCHLICH])","v":{"v":850,"d":"850.00"}},{"$f":"SUBTOTAL(109,Blumen[ÜBER/UNTER])","v":{"v":50,"d":"50.00"}}]
[]
["Die Bezeichnung \"Geschenke\" befindet sich in der Zelle rechts.","Geschenke"]
["Geben Sie Details in der Tabelle \"Geschenke\" ein, die in der Zelle rechts beginnt. Die nächste Anweisung finden Sie in Zelle A29.","KATEGORIE","GESCHÄTZT","TATSÄCHLICH","ÜBER/UNTER"]
[null,"Teilnehmer",{"v":1000,"d":"1,000.00"},{"v":400,"d":"400.00"},{"$f":"'Deko-Blumen-Geschenke-Reise'!$C22-'Deko-Blumen-Geschenke-Reise'!$D22","v":{"v":600,"d":"600.00"}}]
[null,"Verlobter 1",{"v":150,"d":"150.00"},{"v":200,"d":"200.00"},{"$f":"'Deko-Blumen-Geschenke-Reise'!$C23-'Deko-Blumen-Geschenke-Reise'!$D23","v":{"v":-50,"d":"-50.00 "}}]
[null,"Verlobter 2",{"v":150,"d":"150.00"},{"v":200,"d":"200.00"},{"$f":"'Deko-Blumen-Geschenke-Reise'!$C24-'Deko-Blumen-Geschenke-Reise'!$D24","v":{"v":-50,"d":"-50.00 "}}]
[null,"Eltern",{"v":25,"d":"25.00"},{"v":25,"d":"25.00"},{"$f":"'Deko-Blumen-Geschenke-Reise'!$C25-'Deko-Blumen-Geschenke-Reise'!$D25","v":{"v":0,"d":"0.00"}}]
[null,"Leser/sonstige Teilnehmer",{"v":20,"d":"20.00"},{"v":250,"d":"250.00"},{"$f":"'Deko-Blumen-Geschenke-Reise'!$C26-'Deko-Blumen-Geschenke-Reise'!$D26","v":{"v":-230,"d":"-230.00 "}}]
[null,"Geschenke gesamt",{"$f":"SUBTOTAL(109,Geschenke[GESCHÄTZT])","v":{"v":1345,"d":"1,345.00"}},{"$f":"SUBTOTAL(109,Geschenke[TATSÄCHLICH])","v":{"v":1075,"d":"1,075.00"}},{"$f":"SUBTOTAL(109,Geschenke[ÜBER/UNTER])","v":{"v":270,"d":"270.00"}}]
[]
["Die Bezeichnung \"Reise\" oder \"Beförderung\" befindet sich in der Zelle rechts.","Reise/Beförderung"]
["Geben Sie Details in der Tabelle \"Reise\" ein, die in der Zelle rechts beginnt. Die nächste Anweisung finden Sie in Zelle A36.","KATEGORIE","GESCHÄTZT","TATSÄCHLICH","ÜBER/UNTER"]
[null,"Limousinen/Handwagen",{"v":100,"d":"100.00"},{"v":125,"d":"125.00"},{"$f":"'Deko-Blumen-Geschenke-Reise'!$C31-'Deko-Blumen-Geschenke-Reise'!$D31","v":{"v":-25,"d":"-25.00 "}}]
[null,"Parken",{"v":0,"d":"0.00"},{"v":40,"d":"40.00"},{"$f":"'Deko-Blumen-Geschenke-Reise'!$C32-'Deko-Blumen-Geschenke-Reise'!$D32","v":{"v":-40,"d":"-40.00 "}}]
[null,"Taxis",{"v":0,"d":"0.00"},{"v":0,"d":"0.00"},{"$f":"'Deko-Blumen-Geschenke-Reise'!$C33-'Deko-Blumen-Geschenke-Reise'!$D33","v":{"v":0,"d":"0.00"}}]
[null,"Reise/Beförderung gesamt",{"$f":"SUBTOTAL(109,Reise[GESCHÄTZT])","v":{"v":100,"d":"100.00"}},{"$f":"SUBTOTAL(109,Reise[TATSÄCHLICH])","v":{"v":165,"d":"165.00"}},{"$f":"SUBTOTAL(109,Reise[ÜBER/UNTER])","v":{"v":-65,"d":"-65.00 "}}]
[]
["Die Bezeichnung \"Sonstige Ausgaben\" befindet sich in der Zelle rechts.","Sonstige Ausgaben"]
["Geben Sie Details in der Tabelle \"Sonstige Ausgaben\" ein, die in der Zelle rechts beginnt.","KATEGORIE","GESCHÄTZT","TATSÄCHLICH","ÜBER/UNTER"]
[null,"Offiziant",{"v":0,"d":"0.00"},{"v":0,"d":"0.00"},{"$f":"'Deko-Blumen-Geschenke-Reise'!$C38-'Deko-Blumen-Geschenke-Reise'!$D38","v":{"v":0,"d":"0.00"}}]
[null,"Kosten für Kirche/Zeremonie",{"v":40,"d":"40.00"},{"v":55,"d":"55.00"},{"$f":"'Deko-Blumen-Geschenke-Reise'!$C39-'Deko-Blumen-Geschenke-Reise'!$D39","v":{"v":-15,"d":"-15.00 "}}]
[null,"Hochzeitskoordinator",{"v":0,"d":"0.00"},{"v":0,"d":"0.00"},{"$f":"'Deko-Blumen-Geschenke-Reise'!$C40-'Deko-Blumen-Geschenke-Reise'!$D40","v":{"v":0,"d":"0.00"}}]
[null,"Probediner",{"v":450,"d":"450.00"},{"v":450,"d":"450.00"},{"$f":"'Deko-Blumen-Geschenke-Reise'!$C41-'Deko-Blumen-Geschenke-Reise'!$D41","v":{"v":0,"d":"0.00"}}]
[null,"Verlobungsparty",{"v":20,"d":"20.00"},{"v":50,"d":"50.00"},{"$f":"'Deko-Blumen-Geschenke-Reise'!$C42-'Deko-Blumen-Geschenke-Reise'!$D42","v":{"v":-30,"d":"-30.00 "}}]
[null,"Empfänge",{"v":30,"d":"30.00"},{"v":20,"d":"20.00"},{"$f":"'Deko-Blumen-Geschenke-Reise'!$C43-'Deko-Blumen-Geschenke-Reise'!$D43","v":{"v":10,"d":"10.00"}}]
[null,"Friseurtermine",{"v":45,"d":"45.00"},{"v":46,"d":"46.00"},{"$f":"'Deko-Blumen-Geschenke-Reise'!$C44-'Deko-Blumen-Geschenke-Reise'!$D44","v":{"v":-1,"d":"-1.00 "}}]
[null,"Junggesellen/-innenabschied",{"v":0,"d":"0.00"},{"v":0,"d":"0.00"},{"$f":"'Deko-Blumen-Geschenke-Reise'!$C45-'Deko-Blumen-Geschenke-Reise'!$D45","v":{"v":0,"d":"0.00"}}]
[null,"Frühstück",{"v":300,"d":"300.00"},{"v":400,"d":"400.00"},{"$f":"'Deko-Blumen-Geschenke-Reise'!$C46-'Deko-Blumen-Geschenke-Reise'!$D46","v":{"v":-100,"d":"-100.00 "}}]
[null,"Hotelzimmer",{"v":0,"d":"0.00"},{"v":0,"d":"0.00"},{"$f":"'Deko-Blumen-Geschenke-Reise'!$C47-'Deko-Blumen-Geschenke-Reise'!$D47","v":{"v":0,"d":"0.00"}}]
[null,"Sonstige Ausgaben gesamt",{"$f":"SUBTOTAL(109,SonstigeAusgaben[GESCHÄTZT])","v":{"v":885,"d":"885.00"}},{"$f":"SUBTOTAL(109,SonstigeAusgaben[TATSÄCHLICH])","v":{"v":1021,"d":"1,021.00"}},{"$f":"SUBTOTAL(109,SonstigeAusgaben[ÜBER/UNTER])","v":{"v":-136,"d":"-136.00 "}}]